[Event "Late-Titled-Tuesday-Blitz-April-30-2024"]
[Site "Chess.com"]
[Date "2024.04.30"]
[Round "1"]
[White "ChadBiryani"]
[Black "Semyon_Khanin"]
[Result "0-1"]
[WhiteElo "2478"]
[BlackElo "2877"]
[TimeControl "180+1"]
[EndTime "14:07:32 PDT"]
[Termination "Semyon_Khanin won by resignation"]

1. c4 {[%clk 0:02:56.6]} 1... Nf6 {[%clk 0:02:59]} 2. g3 {[%clk 0:02:56.1]} 2...
e5 {[%clk 0:02:59.1]} 3. Bg2 {[%clk 0:02:56.2]} 3... c6 {[%clk 0:02:59.7]} 4. d4
{[%clk 0:02:54.2]} 4... exd4 {[%clk 0:02:59.2]} 5. Qxd4 {[%clk 0:02:54]} 5...
Na6 {[%clk 0:02:59]} 6. a3 {[%clk 0:02:53.1]} 6... Bc5 {[%clk 0:02:58.8]} 7. Qd2
{[%clk 0:02:50.8]} 7... O-O {[%clk 0:02:58.6]} 8. Nh3 {[%clk 0:02:47]} 8... d5
{[%clk 0:02:57.7]} 9. b4 {[%clk 0:02:46]} 9... Be7 {[%clk 0:02:54.1]} 10. cxd5
{[%clk 0:02:41.7]} 10... Nxd5 {[%clk 0:02:52]} 11. O-O {[%clk 0:02:37.3]} 11...
Bf6 {[%clk 0:02:50.2]} 12. Bb2 {[%clk 0:02:36.5]} 12... Nf4 {[%clk 0:02:27.9]}
13. Qxf4 {[%clk 0:01:52]} 13... Bxb2 {[%clk 0:02:27]} 14. Ra2 {[%clk 0:01:52.2]}
14... Bf6 {[%clk 0:02:25.9]} 15. Rd2 {[%clk 0:01:51.6]} 15... Qe7 {[%clk
0:02:25.5]} 16. Rfd1 {[%clk 0:01:41.5]} 16... Re8 {[%clk 0:02:22.6]} 17. Qf3
{[%clk 0:01:38.6]} 17... g5 {[%clk 0:02:10.6]} 18. Qh5 {[%clk 0:01:33.8]} 18...
Bf5 {[%clk 0:02:09.7]} 19. e4 {[%clk 0:01:21.6]} 19... Bg6 {[%clk 0:02:08.7]}
20. Qg4 {[%clk 0:01:16.5]} 20... h5 {[%clk 0:01:50.4]} 21. Qe2 {[%clk
0:01:14.6]} 21... Rad8 {[%clk 0:01:47.5]} 22. Kf1 {[%clk 0:00:55.9]} 22... Nc7
{[%clk 0:01:43]} 23. f4 {[%clk 0:00:47.1]} 23... Rxd2 {[%clk 0:01:38.4]} 24.
Nxd2 {[%clk 0:00:46]} 24... Nb5 {[%clk 0:01:37.5]} 25. Nb1 {[%clk 0:00:24.5]}
25... h4 {[%clk 0:01:11.3]} 26. e5 {[%clk 0:00:18.9]} 26... Bxb1 {[%clk
0:01:04]} 27. Rxb1 {[%clk 0:00:17.8]} 27... Nc3 {[%clk 0:01:04.3]} 28. Qc2
{[%clk 0:00:17.4]} 28... Nxb1 {[%clk 0:01:03.8]} 29. Qxb1 {[%clk 0:00:18]} 29...
Bxe5 {[%clk 0:01:00.1]} 30. fxe5 {[%clk 0:00:18.1]} 30... Qxe5 {[%clk
0:01:00.5]} 31. Qd1 {[%clk 0:00:16.8]} 31... hxg3 {[%clk 0:00:53.5]} 32. hxg3
{[%clk 0:00:14.7]} 32... Qxg3 {[%clk 0:00:53.8]} 33. Nf2 {[%clk 0:00:15.5]}
33... Qf4 {[%clk 0:00:51.7]} 34. Kg1 {[%clk 0:00:13.8]} 34... Re3 {[%clk
0:00:48.6]} 35. Ng4 {[%clk 0:00:11.8]} 35... Re6 {[%clk 0:00:45.6]} 36. Qd8+
{[%clk 0:00:07.9]} 36... Kg7 {[%clk 0:00:45.8]} 37. Qd1 {[%clk 0:00:08.5]} 37...
Rd6 {[%clk 0:00:41.1]} 38. Qa1+ {[%clk 0:00:08.6]} 38... f6 {[%clk 0:00:41.3]}
39. Nf2 {[%clk 0:00:08.8]} 39... Rd2 {[%clk 0:00:40.6]} 40. Qe1 {[%clk
0:00:09.4]} 40... Kh6 {[%clk 0:00:23.9]} 41. Bh3 {[%clk 0:00:07.1]} 41... Qd4
{[%clk 0:00:22.3]} 42. Kf1 {[%clk 0:00:05.2]} 42... Rb2 {[%clk 0:00:15.9]} 43.
Ng4+ {[%clk 0:00:05.2]} 43... Kh5 {[%clk 0:00:15]} 44. Qe8+ {[%clk 0:00:02.8]}
44... Kh4 {[%clk 0:00:15.5]} 45. Qe1+ {[%clk 0:00:01.2]} 45... Kxh3 {[%clk
0:00:14]} 46. Nf2+ {[%clk 0:00:01.9]} 46... Rxf2+ {[%clk 0:00:13.6]} 47. Qxf2
{[%clk 0:00:02.2]} 47... Qxf2+ {[%clk 0:00:13.9]} 48. Kxf2 {[%clk 0:00:03.1]}
48... Kg4 {[%clk 0:00:14.2]} 0-1

[Event "Late-Titled-Tuesday-Blitz-April-30-2024"]
[Site "Chess.com"]
[Date "2024.04.30"]
[Round "1"]
[White "Russian_berezka"]
[Black "Goi_Manne"]
[Result "1-0"]
[WhiteElo "2630"]
[BlackElo "2313"]
[TimeControl "180+1"]
[EndTime "14:07:32 PDT"]
[Termination "Russian_berezka won by resignation"]

1. d4 {[%clk 0:03:00.9]} 1... d5 {[%clk 0:02:49.3]} 2. c4 {[%clk 0:03:01.2]}
2... dxc4 {[%clk 0:02:49.6]} 3. Nf3 {[%clk 0:03:00]} 3... Nf6 {[%clk 0:02:49.6]}
4. e3 {[%clk 0:03:00.5]} 4... Bg4 {[%clk 0:02:49.2]} 5. Bxc4 {[%clk 0:02:57.2]}
5... e6 {[%clk 0:02:49.3]} 6. h3 {[%clk 0:02:52.8]} 6... Bh5 {[%clk 0:02:48.8]}
7. Nc3 {[%clk 0:02:53.4]} 7... Nc6 {[%clk 0:02:48]} 8. O-O {[%clk 0:02:42.1]}
8... Bd6 {[%clk 0:02:47.3]} 9. Be2 {[%clk 0:02:39]} 9... O-O {[%clk 0:02:46.7]}
10. a3 {[%clk 0:02:15.4]} 10... Qe7 {[%clk 0:02:44.3]} 11. b4 {[%clk 0:01:51.7]}
11... a6 {[%clk 0:02:41.2]} 12. Bb2 {[%clk 0:01:50.3]} 12... Rad8 {[%clk
0:02:40.3]} 13. Qb3 {[%clk 0:01:41.5]} 13... e5 {[%clk 0:02:34]} 14. dxe5 {[%clk
0:01:23.4]} 14... Nxe5 {[%clk 0:02:33.8]} 15. Nd4 {[%clk 0:01:23.7]} 15... Bxe2
{[%clk 0:02:31.7]} 16. Ncxe2 {[%clk 0:01:24.6]} 16... g6 {[%clk 0:02:18]} 17.
Nf4 {[%clk 0:01:12.8]} 17... Ned7 {[%clk 0:02:16.6]} 18. Rfe1 {[%clk 0:01:06.5]}
18... Rfe8 {[%clk 0:02:05.4]} 19. Nf3 {[%clk 0:01:04.3]} 19... Ne5 {[%clk
0:02:01.8]} 20. Nxe5 {[%clk 0:00:47.9]} 20... Bxe5 {[%clk 0:02:00.4]} 21. Bxe5
{[%clk 0:00:48.8]} 21... Qxe5 {[%clk 0:02:00.1]} 22. Rad1 {[%clk 0:00:49.5]}
22... Kg7 {[%clk 0:01:53.2]} 23. Qc4 {[%clk 0:00:46.5]} 23... c6 {[%clk
0:01:48.8]} 24. Nd3 {[%clk 0:00:43.5]} 24... Qd6 {[%clk 0:01:33.4]} 25. Qb3
{[%clk 0:00:26.3]} 25... Qd5 {[%clk 0:01:31.5]} 26. Qc3 {[%clk 0:00:25.7]} 26...
Rd6 {[%clk 0:01:18.6]} 27. f3 {[%clk 0:00:18.6]} 27... Rd7 {[%clk 0:01:05.9]}
28. e4 {[%clk 0:00:19]} 28... Qd4+ {[%clk 0:01:04.6]} 29. Qxd4 {[%clk
0:00:19.4]} 29... Rxd4 {[%clk 0:01:05]} 30. Nc5 {[%clk 0:00:20.2]} 30... Rxd1
{[%clk 0:00:58.9]} 31. Rxd1 {[%clk 0:00:21.1]} 31... Re7 {[%clk 0:00:59.3]} 32.
Rd8 {[%clk 0:00:20.3]} 32... a5 {[%clk 0:00:52.6]} 33. Rb8 {[%clk 0:00:19.7]}
33... axb4 {[%clk 0:00:52.5]} 34. axb4 {[%clk 0:00:20.6]} 34... b5 {[%clk
0:00:42.1]} 35. Rc8 {[%clk 0:00:19.2]} 35... Ra7 {[%clk 0:00:39.7]} 36. Rxc6
{[%clk 0:00:19.6]} 36... Ra1+ {[%clk 0:00:39.6]} 37. Kf2 {[%clk 0:00:18.2]}
37... Rb1 {[%clk 0:00:40]} 38. Nd3 {[%clk 0:00:17.7]} 38... Rb3 {[%clk
0:00:39.9]} 39. Ke3 {[%clk 0:00:16.7]} 39... Nd7 {[%clk 0:00:40]} 40. f4 {[%clk
0:00:15.7]} 40... g5 {[%clk 0:00:38.4]} 41. g3 {[%clk 0:00:15.6]} 41... h5
{[%clk 0:00:37.7]} 42. h4 {[%clk 0:00:15.3]} 42... gxh4 {[%clk 0:00:35.6]} 43.
gxh4 {[%clk 0:00:16.2]} 43... Kf8 {[%clk 0:00:28.2]} 44. e5 {[%clk 0:00:16.1]}
44... Ke7 {[%clk 0:00:27.8]} 45. Rc7 {[%clk 0:00:16.4]} 45... Ke6 {[%clk
0:00:27.5]} 46. f5+ {[%clk 0:00:15.4]} 46... Ke7 {[%clk 0:00:26.7]} 47. Kd4
{[%clk 0:00:15.4]} 47... Kd8 {[%clk 0:00:25.7]} 48. Rxd7+ {[%clk 0:00:15.5]}
48... Kxd7 {[%clk 0:00:24.2]} 49. Nc5+ {[%clk 0:00:16.4]} 49... Kc6 {[%clk
0:00:24.1]} 50. Nxb3 {[%clk 0:00:17.3]} 50... Kb6 {[%clk 0:00:24.6]} 51. Nc5
{[%clk 0:00:16.8]} 51... Kc6 {[%clk 0:00:25]} 52. Ke4 {[%clk 0:00:16.9]} 52...
Kc7 {[%clk 0:00:24.1]} 53. Kd5 {[%clk 0:00:17.4]} 53... Kd8 {[%clk 0:00:24]} 54.
e6 {[%clk 0:00:17.9]} 54... fxe6+ {[%clk 0:00:23.7]} 55. Kxe6 {[%clk 0:00:18.8]}
1-0

[Event "Late-Titled-Tuesday-Blitz-April-30-2024"]
[Site "Chess.com"]
[Date "2024.04.30"]
[Round "1"]
[White "CMButgood"]
[Black "Artem_Koval"]
[Result "0-1"]
[WhiteElo "2079"]
[BlackElo "2555"]
[TimeControl "180+1"]
[EndTime "14:07:32 PDT"]
[Termination "Artem_Koval won on time"]

1. e4 {[%clk 0:02:59.6]} 1... c5 {[%clk 0:02:59.4]} 2. Nf3 {[%clk 0:02:59.9]}
2... d6 {[%clk 0:02:59.6]} 3. d4 {[%clk 0:03:00.6]} 3... cxd4 {[%clk 0:03:00.5]}
4. Nxd4 {[%clk 0:03:01.5]} 4... Nf6 {[%clk 0:03:00.4]} 5. Nc3 {[%clk 0:03:02.4]}
5... a6 {[%clk 0:03:00.7]} 6. Bg5 {[%clk 0:03:02.3]} 6... Nbd7 {[%clk
0:03:00.4]} 7. Qe2 {[%clk 0:03:01.4]} 7... e6 {[%clk 0:02:59.3]} 8. O-O-O {[%clk
0:03:01.6]} 8... Be7 {[%clk 0:02:59.8]} 9. f4 {[%clk 0:03:02]} 9... Qc7 {[%clk
0:03:00.3]} 10. g4 {[%clk 0:02:53.9]} 10... O-O {[%clk 0:02:57.8]} 11. h4 {[%clk
0:02:52.9]} 11... b5 {[%clk 0:02:55.5]} 12. a3 {[%clk 0:02:45.2]} 12... Bb7
{[%clk 0:02:54.6]} 13. Bg2 {[%clk 0:02:44.9]} 13... Rac8 {[%clk 0:02:50.7]} 14.
Bxf6 {[%clk 0:02:38.5]} 14... Nxf6 {[%clk 0:02:43.1]} 15. g5 {[%clk 0:02:35.4]}
15... Nd7 {[%clk 0:02:43.3]} 16. f5 {[%clk 0:02:28.2]} 16... exf5 {[%clk
0:02:37.9]} 17. Nxf5 {[%clk 0:02:26.7]} 17... Ne5 {[%clk 0:02:37.1]} 18. Rhg1
{[%clk 0:02:09.2]} 18... Rfd8 {[%clk 0:02:36.5]} 19. Bh3 {[%clk 0:02:09.1]}
19... Bf8 {[%clk 0:02:35.8]} 20. Qf2 {[%clk 0:01:29.6]} 20... Rb8 {[%clk
0:02:07.7]} 21. Nh6+ {[%clk 0:01:25.2]} 21... gxh6 {[%clk 0:02:08.6]} 22. gxh6+
{[%clk 0:01:25]} 22... Ng6 {[%clk 0:02:09.3]} 23. h5 {[%clk 0:01:18.5]} 23...
Bxh6+ {[%clk 0:02:01.9]} 24. Kb1 {[%clk 0:01:18.7]} 24... Bg7 {[%clk 0:02:02.2]}
25. hxg6 {[%clk 0:01:17.4]} 25... hxg6 {[%clk 0:02:01.1]} 26. Rxg6 {[%clk
0:01:11.8]} 26... fxg6 {[%clk 0:01:45.7]} 27. Be6+ {[%clk 0:01:11.3]} 27... Kh7
{[%clk 0:01:46.4]} 28. Rh1+ {[%clk 0:01:02.2]} 28... Bh6 {[%clk 0:01:46.4]} 29.
Bf7 {[%clk 0:00:18.2]} 29... Kg7 {[%clk 0:01:24.7]} 30. Rxh6 {[%clk 0:00:07.9]}
30... Kxh6 {[%clk 0:01:16.3]} 31. Qf6 {[%clk 0:00:08.6]} 31... Rg8 {[%clk
0:01:13.7]} 32. Ne2 {[%clk 0:00:08.5]} 32... Rbf8 {[%clk 0:01:04.9]} 33. Ng3
{[%clk 0:00:04.8]} 33... Kh7 {[%clk 0:00:47.1]} 34. Qh4+ {[%clk 0:00:02.1]}
34... Kg7 {[%clk 0:00:46.3]} 35. Bxg8 {[%clk 0:00:02.3]} 35... Kxg8 {[%clk
0:00:40.4]} 36. Qh6 {[%clk 0:00:02.3]} 36... Qg7 {[%clk 0:00:38.1]} 37. Qg5
{[%clk 0:00:02.8]} 37... Qf6 {[%clk 0:00:35]} 38. Qh6 {[%clk 0:00:01.7]} 38...
a5 {[%clk 0:00:23.3]} 39. Ka2 {[%clk 0:00:02]} 39... b4 {[%clk 0:00:23.2]} 40.
axb4 {[%clk 0:00:02.2]} 40... axb4 {[%clk 0:00:24.1]} 0-1

[Event "Late-Titled-Tuesday-Blitz-April-30-2024"]
[Site "Chess.com"]
[Date "2024.04.30"]
[Round "1"]
[White "cthake"]
[Black "manmanlai1"]
[Result "0-1"]
[WhiteElo "1864"]
[BlackElo "2542"]
[TimeControl "180+1"]
[EndTime "14:07:36 PDT"]
[Termination "manmanlai1 won on time"]

1. e4 {[%clk 0:03:00.2]} 1... c5 {[%clk 0:02:52]} 2. Nf3 {[%clk 0:02:59.9]} 2...
e6 {[%clk 0:02:37.9]} 3. c3 {[%clk 0:02:59.4]} 3... Nf6 {[%clk 0:02:33.5]} 4.
Bd3 {[%clk 0:02:53.9]} 4... Nc6 {[%clk 0:02:28.5]} 5. O-O {[%clk 0:02:48.3]}
5... d6 {[%clk 0:02:15]} 6. Bc2 {[%clk 0:02:47.5]} 6... Be7 {[%clk 0:02:11.5]}
7. d4 {[%clk 0:02:45.7]} 7... Qc7 {[%clk 0:02:03.3]} 8. Re1 {[%clk 0:02:44.5]}
8... O-O {[%clk 0:02:00.4]} 9. Nbd2 {[%clk 0:02:29]} 9... cxd4 {[%clk
0:01:59.5]} 10. cxd4 {[%clk 0:02:28.4]} 10... Nb4 {[%clk 0:01:59.3]} 11. Bb1
{[%clk 0:02:22.9]} 11... e5 {[%clk 0:01:56.4]} 12. a3 {[%clk 0:02:20.9]} 12...
Nc6 {[%clk 0:01:54]} 13. d5 {[%clk 0:02:17.3]} 13... Nb8 {[%clk 0:01:49.1]} 14.
Bd3 {[%clk 0:02:08.9]} 14... Bd7 {[%clk 0:01:48.5]} 15. b4 {[%clk 0:02:07.6]}
15... Rc8 {[%clk 0:01:44]} 16. Bb2 {[%clk 0:02:05.2]} 16... Qd8 {[%clk
0:01:39.9]} 17. Rc1 {[%clk 0:02:02.4]} 17... Be8 {[%clk 0:01:34.4]} 18. Qb3
{[%clk 0:01:57]} 18... Nbd7 {[%clk 0:01:33]} 19. h3 {[%clk 0:01:51.1]} 19... h6
{[%clk 0:01:33.3]} 20. a4 {[%clk 0:01:46.5]} 20... Nh5 {[%clk 0:01:27.4]} 21. g3
{[%clk 0:01:40.2]} 21... a5 {[%clk 0:01:22.4]} 22. Rxc8 {[%clk 0:01:24.6]} 22...
Rxc8 {[%clk 0:01:20.8]} 23. Rc1 {[%clk 0:01:18.6]} 23... Rxc1+ {[%clk
0:01:12.7]} 24. Bxc1 {[%clk 0:01:18.4]} 24... axb4 {[%clk 0:01:12.2]} 25. Qxb4
{[%clk 0:01:16.7]} 25... Nc5 {[%clk 0:01:12.1]} 26. Be2 {[%clk 0:01:11.6]} 26...
Bxa4 {[%clk 0:01:10.6]} 27. Nxe5 {[%clk 0:01:06.6]} 27... Nxg3 {[%clk
0:01:00.5]} 28. fxg3 {[%clk 0:01:06.5]} 28... dxe5 {[%clk 0:01:00.7]} 29. Ba3
{[%clk 0:00:59]} 29... Bf8 {[%clk 0:00:49.3]} 30. Nf3 {[%clk 0:00:58.3]} 30...
Bd7 {[%clk 0:00:40.3]} 31. Qb1 {[%clk 0:00:51.4]} 31... Bxh3 {[%clk 0:00:36.9]}
32. Nxe5 {[%clk 0:00:47.9]} 32... Qf6 {[%clk 0:00:33.1]} 33. Nf3 {[%clk
0:00:44.7]} 33... Bg4 {[%clk 0:00:31.4]} 34. Kg2 {[%clk 0:00:41.3]} 34... Qc3
{[%clk 0:00:28.3]} 35. Bb4 {[%clk 0:00:27.7]} 35... Qe3 {[%clk 0:00:24.4]} 36.
Bxc5 {[%clk 0:00:19.5]} 36... Bxc5 {[%clk 0:00:22.2]} 37. Qf1 {[%clk 0:00:19.1]}
37... Qxe4 {[%clk 0:00:21.8]} 38. Qd1 {[%clk 0:00:13.2]} 38... Bd6 {[%clk
0:00:15.7]} 39. Qd2 {[%clk 0:00:09.5]} 39... b6 {[%clk 0:00:13.1]} 40. Qd1
{[%clk 0:00:06]} 40... h5 {[%clk 0:00:13]} 41. Kf2 {[%clk 0:00:04.2]} 41... Bc5+
{[%clk 0:00:10.9]} 42. Kg2 {[%clk 0:00:04]} 42... Qe3 {[%clk 0:00:11.5]} 43. Qf1
{[%clk 0:00:02.5]} 43... Bf5 {[%clk 0:00:09.2]} 0-1

[Event "Late-Titled-Tuesday-Blitz-April-30-2024"]
[Site "Chess.com"]
[Date "2024.04.30"]
[Round "1"]
[White "grandmastergauri"]
[Black "Nemsko"]
[Result "0-1"]
[WhiteElo "2735"]
[BlackElo "2443"]
[TimeControl "180+1"]
[EndTime "14:07:37 PDT"]
[Termination "Nemsko won by checkmate"]

1. e4 {[%clk 0:02:48.4]} 1... e5 {[%clk 0:02:58.7]} 2. Nf3 {[%clk 0:02:48]} 2...
Nc6 {[%clk 0:02:58.9]} 3. Bc4 {[%clk 0:02:46.7]} 3... Bc5 {[%clk 0:02:57.4]} 4.
c3 {[%clk 0:02:46.2]} 4... Nf6 {[%clk 0:02:57.5]} 5. d3 {[%clk 0:02:45.8]} 5...
a6 {[%clk 0:02:57.2]} 6. a4 {[%clk 0:02:44]} 6... d6 {[%clk 0:02:57.2]} 7. O-O
{[%clk 0:02:43.5]} 7... O-O {[%clk 0:02:57.6]} 8. h3 {[%clk 0:02:42.6]} 8... Ba7
{[%clk 0:02:56.4]} 9. Re1 {[%clk 0:02:41.7]} 9... Be6 {[%clk 0:02:56.7]} 10.
Bxe6 {[%clk 0:02:33.3]} 10... fxe6 {[%clk 0:02:56.7]} 11. b4 {[%clk 0:02:33.9]}
11... Qe7 {[%clk 0:02:55.3]} 12. Ra2 {[%clk 0:02:26.7]} 12... h6 {[%clk
0:02:48.8]} 13. b5 {[%clk 0:02:10.7]} 13... Nb8 {[%clk 0:02:43.2]} 14. Rb2
{[%clk 0:01:47.5]} 14... axb5 {[%clk 0:02:39.7]} 15. axb5 {[%clk 0:01:46.6]}
15... Nbd7 {[%clk 0:02:34.5]} 16. Nbd2 {[%clk 0:01:43.4]} 16... Nc5 {[%clk
0:02:26.5]} 17. Nc4 {[%clk 0:01:41.9]} 17... Na4 {[%clk 0:02:18.5]} 18. Rb3
{[%clk 0:01:29.9]} 18... Nb6 {[%clk 0:02:17.7]} 19. Ne3 {[%clk 0:01:20.5]} 19...
Nbd7 {[%clk 0:02:15.7]} 20. Rb1 {[%clk 0:01:13]} 20... Bc5 {[%clk 0:02:05.7]}
21. d4 {[%clk 0:00:57.3]} 21... exd4 {[%clk 0:02:06.6]} 22. cxd4 {[%clk
0:00:57.5]} 22... Ba3 {[%clk 0:02:05.6]} 23. e5 {[%clk 0:00:54.9]} 23... Nd5
{[%clk 0:01:58.6]} 24. Nxd5 {[%clk 0:00:43.9]} 24... exd5 {[%clk 0:01:59.5]} 25.
Bxa3 {[%clk 0:00:41]} 25... Rxa3 {[%clk 0:01:59.1]} 26. Rc1 {[%clk 0:00:39.2]}
26... Raxf3 {[%clk 0:01:53]} 27. gxf3 {[%clk 0:00:39.2]} 27... Qg5+ {[%clk
0:01:53.2]} 28. Kf1 {[%clk 0:00:38.5]} 28... Qf5 {[%clk 0:01:46.8]} 29. Kg2
{[%clk 0:00:29.1]} 29... Qg5+ {[%clk 0:01:45.9]} 30. Kf1 {[%clk 0:00:28.3]}
30... Qf5 {[%clk 0:01:45.8]} 31. Re3 {[%clk 0:00:20.6]} 31... Qxh3+ {[%clk
0:01:44.3]} 32. Ke2 {[%clk 0:00:21]} 32... Nb6 {[%clk 0:01:30]} 33. Qh1 {[%clk
0:00:18.5]} 33... Qf5 {[%clk 0:01:29.1]} 34. exd6 {[%clk 0:00:15.9]} 34... cxd6
{[%clk 0:01:23.2]} 35. Rc7 {[%clk 0:00:15.6]} 35... Nc4 {[%clk 0:01:22]} 36.
Ree7 {[%clk 0:00:15.2]} 36... Qc2+ {[%clk 0:01:14.9]} 37. Kf1 {[%clk 0:00:15.5]}
37... Qd1+ {[%clk 0:01:14.1]} 38. Kg2 {[%clk 0:00:15.9]} 38... Qxf3+ {[%clk
0:01:14]} 39. Kh2 {[%clk 0:00:14.7]} 39... Qh5+ {[%clk 0:00:39.2]} 40. Kg1
{[%clk 0:00:13.8]} 40... Qd1+ {[%clk 0:00:35.6]} 41. Kh2 {[%clk 0:00:14.1]}
41... Rxf2+ {[%clk 0:00:34]} 42. Kg3 {[%clk 0:00:14.3]} 42... Qxh1 {[%clk
0:00:25]} 43. Rxg7+ {[%clk 0:00:14.5]} 43... Kf8 {[%clk 0:00:24.8]} 44. Kxf2
{[%clk 0:00:15.4]} 44... Qh4+ {[%clk 0:00:22.3]} 45. Kg2 {[%clk 0:00:13.4]}
45... Qe4+ {[%clk 0:00:22]} 46. Kh3 {[%clk 0:00:13]} 46... Qd3+ {[%clk
0:00:20.6]} 47. Kh2 {[%clk 0:00:12.5]} 47... Qe2+ {[%clk 0:00:20.1]} 48. Kh3
{[%clk 0:00:12.6]} 48... Qf3+ {[%clk 0:00:20.6]} 49. Kh2 {[%clk 0:00:13]} 49...
Ne3 {[%clk 0:00:17.1]} 50. Rh7 {[%clk 0:00:03.1]} 50... Ng4+ {[%clk 0:00:16]}
51. Kg1 {[%clk 0:00:02.9]} 51... Qf2+ {[%clk 0:00:16.3]} 52. Kh1 {[%clk
0:00:03.2]} 52... Qh2# {[%clk 0:00:17]} 0-1

[Event "Late-Titled-Tuesday-Blitz-April-30-2024"]
[Site "Chess.com"]
[Date "2024.04.30"]
[Round "1"]
[White "Arystanner"]
[Black "masterofpuppets2"]
[Result "1-0"]
[WhiteElo "2863"]
[BlackElo "2474"]
[TimeControl "180+1"]
[EndTime "14:07:42 PDT"]
[Termination "Arystanner won by resignation"]

1. d4 {[%clk 0:02:56.4]} 1... d5 {[%clk 0:02:59.5]} 2. Nf3 {[%clk 0:02:54.5]}
2... c5 {[%clk 0:02:59.3]} 3. c4 {[%clk 0:02:53]} 3... e6 {[%clk 0:02:59]} 4. e3
{[%clk 0:02:52.5]} 4... Nc6 {[%clk 0:02:58.7]} 5. Nc3 {[%clk 0:02:51.1]} 5...
Nf6 {[%clk 0:02:58.4]} 6. cxd5 {[%clk 0:02:51.8]} 6... exd5 {[%clk 0:02:59.3]}
7. Bb5 {[%clk 0:02:51.9]} 7... Bd7 {[%clk 0:02:57.1]} 8. O-O {[%clk 0:02:49.2]}
8... a6 {[%clk 0:02:54.5]} 9. Bxc6 {[%clk 0:02:42.4]} 9... Bxc6 {[%clk
0:02:55.4]} 10. b3 {[%clk 0:02:43.1]} 10... Bd6 {[%clk 0:02:50.5]} 11. dxc5
{[%clk 0:02:43]} 11... Bxc5 {[%clk 0:02:51.4]} 12. Bb2 {[%clk 0:02:43.5]} 12...
Ba7 {[%clk 0:02:51]} 13. Rc1 {[%clk 0:02:41.8]} 13... O-O {[%clk 0:02:50.7]} 14.
Ne2 {[%clk 0:02:41.1]} 14... Re8 {[%clk 0:02:48.7]} 15. Ned4 {[%clk 0:02:34.1]}
15... Rc8 {[%clk 0:02:42.2]} 16. Nxc6 {[%clk 0:02:33.5]} 16... Rxc6 {[%clk
0:02:36.9]} 17. Rxc6 {[%clk 0:02:32.9]} 17... bxc6 {[%clk 0:02:37.8]} 18. Qd3
{[%clk 0:02:33.5]} 18... a5 {[%clk 0:02:29.3]} 19. Rc1 {[%clk 0:02:32.4]} 19...
Ne4 {[%clk 0:02:28.6]} 20. Nd4 {[%clk 0:02:19.8]} 20... Qh4 {[%clk 0:01:54]} 21.
g3 {[%clk 0:02:17.6]} 21... Qh3 {[%clk 0:01:51.9]} 22. Rxc6 {[%clk 0:01:57.1]}
22... Nxf2 {[%clk 0:01:35.7]} 23. Qf5 {[%clk 0:01:37.3]} 23... Bxd4 {[%clk
0:01:30.2]} 24. Qxf2 {[%clk 0:01:37.8]} 24... Bxb2 {[%clk 0:01:27.5]} 25. Qxb2
{[%clk 0:01:36.8]} 25... Rxe3 {[%clk 0:01:23]} 26. Qd2 {[%clk 0:01:18.3]} 26...
Re8 {[%clk 0:01:20.5]} 27. Rd6 {[%clk 0:01:13.8]} 27... h6 {[%clk 0:00:52.1]}
28. Rxd5 {[%clk 0:01:13.1]} 28... a4 {[%clk 0:00:40.2]} 29. bxa4 {[%clk
0:01:07.1]} 29... Qe6 {[%clk 0:00:38.4]} 30. a5 {[%clk 0:01:04.2]} 30... Qe3+
{[%clk 0:00:31.3]} 31. Qxe3 {[%clk 0:01:04.2]} 31... Rxe3 {[%clk 0:00:32.2]} 32.
Kf2 {[%clk 0:00:43.7]} 32... Ra3 {[%clk 0:00:31.9]} 33. h4 {[%clk 0:00:42.6]}
33... g6 {[%clk 0:00:29]} 34. h5 {[%clk 0:00:33.8]} 34... Kg7 {[%clk 0:00:27.9]}
35. g4 {[%clk 0:00:33.4]} 35... gxh5 {[%clk 0:00:25.9]} 36. Rxh5 {[%clk
0:00:31]} 36... Kg6 {[%clk 0:00:24.5]} 37. Rb5 {[%clk 0:00:24.9]} 37... Kg7
{[%clk 0:00:23.5]} 38. Ke2 {[%clk 0:00:24.1]} 38... Rxa2+ {[%clk 0:00:20.9]} 39.
Kd3 {[%clk 0:00:20.5]} 39... Ra4 {[%clk 0:00:21.5]} 40. Kc3 {[%clk 0:00:20]}
40... Rxg4 {[%clk 0:00:19]} 41. Kb3 {[%clk 0:00:18.7]} 41... Rg1 {[%clk
0:00:16.9]} 42. Kb4 {[%clk 0:00:17.5]} 42... Ra1 {[%clk 0:00:17]} 43. Kc5 {[%clk
0:00:12]} 43... h5 {[%clk 0:00:16.5]} 44. Kb6 {[%clk 0:00:12.1]} 44... Kg6
{[%clk 0:00:15.8]} 45. a6 {[%clk 0:00:12.7]} 45... Rxa6+ {[%clk 0:00:14.6]} 46.
Kxa6 {[%clk 0:00:13.1]} 46... h4 {[%clk 0:00:15.5]} 47. Kb6 {[%clk 0:00:13.1]}
47... f5 {[%clk 0:00:15.6]} 48. Kc5 {[%clk 0:00:13.6]} 48... Kg5 {[%clk
0:00:15.9]} 49. Kd4 {[%clk 0:00:14.1]} 49... Kg4 {[%clk 0:00:16]} 50. Ke3 {[%clk
0:00:13.4]} 50... Kg3 {[%clk 0:00:16.4]} 51. Rxf5 {[%clk 0:00:11.7]} 1-0